bitfinex-derivatives/quotes_ETHF0:USTF0_20250807
["timestamp","ask_amount","ask_price","bid_price","bid_amount"]
[1754555373476,42.5172,3725.7,3725.6,0.53671]
[1754555373778,42.5172,3725.7,3725.6,1.89441]
[1754555374174,2.30490275,3726.4,3726.3,0.53662]
[1754555374175,1.26937275,3726.4,3726.3,0.53662]
[1754555374473,0.306,3726.4,3726.3,2.07032]
[1754555374674,41.856619,3726.4,3726.3,2.07032]
[1754555374878,41.85657712,3726.4,3726.3,2.07032]
[1754555375681,42.15147712,3726.4,3726.3,2.07032]
[1754555376076,42.58637712,3726.4,3726.3,2.07032]
[1754555376280,42.58637712,3726.4,3726.3,1.89432]
[1754555376584,60.99537712,3726.4,3726.3,1.89432]
[1754555376779,60.99537712,3726.4,3726.3,1.1299]
[1754555377176,60.99537712,3726.4,3726.3,1.3577]
[1754555377983,60.99537712,3726.4,3726.2,0.53662]
[1754555378186,2.46777712,3726.3,3726.2,0.96472]
[1754555378386,2.46777712,3726.3,3726.2,1.89432]
[1754555378685,2.46777712,3726.3,3726.2,1.46392]
[1754555379781,20.87577712,3726.3,3726.2,1.66652]
[1754555379982,20.87577712,3726.3,3726.2,1.89432]
[1754555381591,20.87577712,3726.3,3726.2,1.66652]
[1754555381884,20.87577712,3726.3,3726.2,0.53662]
[1754555382592,20.87577712,3726.3,3726.2,0.96472]
[1754555382884,2.46777712,3726.3,3726.2,0.4281]
[1754555383090,1.4223,3726.2,3726.1,0.96474]
[1754555383290,1.7172,3726.2,3726.1,1.26804]
[1754555383590,1.7172,3726.0,3725.9,0.96476]
[1754555383783,20.1252,3726.0,3725.9,1.89436]
[1754555383984,20.8780453,3726.0,3725.9,1.89436]
[1754555384291,20.8780453,3726.0,3725.9,2.07036]
[1754555384292,20.1252,3726.0,3725.9,2.07036]
[1754555385890,20.1252,3726.0,3725.9,1.89436]
[1754555389094,1.7172,3726.0,3725.9,1.89436]
[1754555389293,20.1252,3726.0,3725.9,1.89436]
[1754555390294,1.7172,3726.0,3725.9,1.89436]
[1754555390496,18.713,3726.0,3725.9,2.07036]
[1754555391398,20.1242,3726.0,3725.9,2.07036]
[1754555391696,18.713,3726.0,3725.9,2.07036]
[1754555392089,19.0079,3726.0,3725.9,2.07036]
[1754555392600,1.43804068,3726.9,3726.8,1.89424]
[1754555392601,1.7172,3726.9,3726.8,1.89424]
[1754555392891,61.67721823,3726.9,3726.8,1.89424]
[1754555394602,43.27021823,3726.9,3726.8,1.66644]
[1754555394903,61.67621823,3726.9,3726.8,0.53654]
[1754555395497,61.67621823,3726.9,3726.8,0.96464]
[1754555398097,61.67621823,3726.9,3726.8,0.53654]
[1754555398800,43.27021823,3726.9,3726.8,0.53654]
[1754555399001,40.8,3726.9,3726.8,1.89424]
[1754555399208,59.205,3726.9,3726.8,2.07064]
[1754555399401,59.7711,3726.9,3726.8,2.07064]
[1754555399599,60.2181,3726.9,3726.8,2.07064]
[1754555400401,0.5366,3726.5,3726.3,0.53661]
[1754555400611,20.1127,3726.4,3726.3,0.53661]
[1754555400807,20.1127,3726.4,3726.1,0.53664]
[1754555400808,0.5001,3726.2,3726.1,0.53664]
[1754555401104,0.7595,3725.4,3725.3,1.86386]
[1754555401303,0.7595,3725.4,3725.3,2.04026]
[1754555401607,0.4807,3725.4,3725.3,2.04026]
[1754555401805,0.7595,3725.4,3725.3,2.04026]
[1754555402503,1.7077,3725.4,3725.3,2.04026]
[1754555404102,0.2873,3725.4,3725.3,2.04026]
[1754555404306,1.7077,3725.4,3725.3,0.53676]
[1754555404506,1.7077,3725.4,3725.3,1.86406]
[1754555404702,1.7077,3726.3,3726.2,1.3273]
[1754555404910,20.86432575,3726.3,3726.2,0.2835]
[1754555405105,0.2873,3726.2,3726.1,0.53664]
[1754555405305,1.7077,3726.0,3725.8,0.53668]
[1754555405502,1.7077,3725.9,3725.8,0.53668]
[1754555405898,20.1117,3725.9,3725.8,1.86398]
[1754555406098,60.9127,3725.9,3725.8,1.86398]
[1754555406808,60.9127,3725.9,3725.8,0.53668]
[1754555407110,60.9127,3725.9,3725.8,0.97308]
[1754555407706,60.9127,3725.9,3725.8,0.53668]
[1754555408011,60.9127,3725.9,3725.8,0.72478]
[1754555408308,60.9127,3725.9,3725.8,1.86398]
[1754555408507,42.5077,3725.9,3725.8,1.86398]
[1754555408709,41.8131,3725.9,3725.8,1.86398]
[1754555408904,41.8131,3725.9,3725.8,1.63618]
[1754555409314,60.2181,3725.9,3725.8,1.86398]
[1754555410305,60.2181,3725.9,3725.8,1.63618]
[1754555410505,60.2181,3725.9,3725.8,1.01168]
[1754555410807,60.2181,3725.9,3725.8,0.82018]
[1754555411008,60.2181,3725.9,3725.8,0.53668]
[1754555411411,60.2181,3725.9,3725.8,0.97308]
[1754555411912,60.2181,3725.9,3725.8,0.53668]
[1754555412407,41.8131,3725.9,3725.8,0.53668]
[1754555412601,41.8131,3725.9,3725.8,1.63618]
[1754555412602,60.2181,3725.9,3725.8,1.63618]
[1754555412806,60.2181,3725.9,3725.8,1.86398]
[1754555413910,41.8131,3725.9,3725.8,1.86398]
[1754555414106,60.2191,3725.9,3725.8,1.86398]
[1754555414508,60.2191,3725.9,3725.8,1.63618]
[1754555414908,60.2191,3725.9,3725.8,1.86398]
[1754555416718,60.2191,3725.9,3725.5,0.1761]
[1754555416719,0.53669,3725.8,3725.7,0.5367]
[1754555417018,2.24439,3725.8,3725.7,0.5367]
[1754555417311,43.04439,3725.8,3725.7,0.5367]
[1754555417711,42.5077,3725.8,3725.7,0.5367]
[1754555418816,42.5077,3725.8,3725.4,1.77826]
[1754555418817,42.5077,3725.8,3725.6,0.53671]
[1754555419114,20.1137,3725.7,3725.6,0.53671]
[1754555419507,20.1137,3725.7,3725.5,0.53672]
[1754555419704,41.8131,3725.6,3725.5,0.97312]
[1754555420314,41.8131,3725.6,3725.5,0.53672]
[1754555420512,1.7077,3725.5,3725.4,1.42764]
[1754555420717,19.36,3725.5,3725.4,1.86404]
[1754555420916,19.8264,3725.5,3725.4,1.86404]
[1754555421219,20.1137,3725.5,3725.4,1.86404]
[1754555423317,1.7077,3725.5,3725.4,1.86404]
[1754555423617,20.1137,3725.5,3725.4,1.23954]
[1754555423814,20.1137,3725.5,3725.4,1.67594]
[1754555424017,19.63735,3725.5,3725.0,1.34202]
[1754555424215,19.63735,3725.5,3725.3,0.72485]
[1754555424216,0.6946,3725.4,3725.3,0.72485]
[1754555424619,18.6933,3725.5,3725.4,0.4159]
[1754555424820,1.23127,3726.0,3725.9,0.1881]
[1754555425009,20.65037,3726.0,3725.9,0.4159]
[1754555425213,60.9137,3726.0,3725.9,0.95257]
[1754555425816,1.7077,3725.6,3725.5,0.53673]
[1754555426322,1.7077,3725.6,3725.5,0.95263]
[1754555428219,1.7077,3725.6,3725.5,0.4159]
[1754555428520,1.7077,3725.6,3725.5,0.1881]
[1754555428924,1.7077,3725.6,3725.5,0.4159]
[1754555430020,20.1137,3725.6,3725.5,0.4159]
[1754555432025,1.7077,3725.6,3725.5,0.4159]
[1754555432224,20.1137,3725.6,3725.5,0.4159]
[1754555433229,1.7077,3725.6,3725.5,0.4159]
[1754555433422,0.2873,3725.6,3725.5,0.4159]
[1754555433618,59.4842,3726.0,3725.9,0.96598]
[1754555433822,60.2001,3726.0,3725.9,0.96598]
[1754555434329,41.7951,3726.0,3725.9,0.96598]
[1754555434524,1.72759,3726.5,3726.4,0.76419]
[1754555434725,2.41981062,3726.5,3726.4,0.96589]
[1754555435026,1.3757,3725.5,3725.4,0.2017]
[1754555435230,0.6709,3725.5,3725.4,0.7635]
[1754555435425,0.6709,3725.5,3725.4,0.9911]
[1754555435631,0.6709,3725.8,3725.7,1.3002]
[1754555435824,20.8249094,3725.8,3725.7,0.9911]
[1754555436131,1.666,3725.6,3725.5,1.02052]
[1754555436824,1.666,3725.6,3725.5,1.52782]
[1754555437833,1.666,3725.6,3725.5,0.9911]
[1754555439229,1.666,3725.6,3725.5,0.7635]
[1754555439933,1.666,3725.6,3725.5,0.9911]
[1754555441221,18.405,3725.8,3725.0,0.7114]
[1754555441222,0.6709,3725.1,3725.0,0.7114]
[1754555441424,1.666,3725.1,3725.0,1.52791]
[1754555441933,1.2404,3725.1,3725.0,1.52791]
[1754555442329,1.666,3725.1,3725.0,1.52791]
[1754555444332,1.666,3725.1,3724.5,1.34219]
[1754555444333,0.6709,3724.9,3724.8,0.53683]
[1754555444534,1.666,3724.9,3724.8,0.81653]
[1754555444928,1.20773,3724.8,3724.7,0.53684]
[1754555445128,1.666,3724.8,3724.7,0.53684]
[1754555445327,2.20283,3724.8,3724.7,0.53684]
[1754555445534,0.6709,3724.4,3724.3,1.52801]
[1754555445734,1.666,3724.4,3724.3,0.9911]
[1754555445925,1.666,3724.4,3724.3,0.7635]
[1754555446128,1.666,3724.4,3724.2,0.53691]
[1754555446129,0.53691,3724.3,3724.2,0.53691]
[1754555446437,1.666,3724.1,3724.0,0.2797]
[1754555447032,1.2787,3724.0,3723.9,1.50366545]
[1754555447237,1.666,3724.0,3723.9,1.50366545]
[1754555447733,1.666,3724.0,3723.9,0.96671545]
[1754555448129,1.666,3724.0,3723.9,0.19391545]
[1754555448631,42.466,3724.0,3723.9,0.19391545]
[1754555449033,0.9951,3723.3,3722.7,0.9567]
[1754555449237,1.666,3723.2,3723.1,0.53707]
[1754555450031,1.666,3723.2,3723.1,0.53707]
[1754555450236,1.666,3723.2,3723.1,1.43527]
[1754555450537,1.666,3723.2,3723.1,0.8982]
[1754555450931,1.666,3723.2,3723.1,0.4729]
[1754555451333,1.666,3723.2,3723.1,0.2821]
[1754555451537,1.666,3723.2,3723.1,1.0999]
[1754555451738,0.6709,3723.2,3723.0,0.53708]
[1754555451939,1.666,3723.1,3723.0,0.53708]
[1754555452138,1.666,3723.1,3723.0,1.43528]
[1754555452340,1.666,3723.1,3723.0,1.63698]
[1754555452834,1.666,3723.1,3723.0,1.86458]
[1754555453242,0.9951,3723.7,3723.6,1.4352]
[1754555453538,1.666,3723.7,3723.6,1.8645]
[1754555453736,1.666,3723.9,3723.8,1.86447]
[1754555453940,20.09,3723.9,3723.8,1.86447]
[1754555454441,20.09,3723.9,3723.8,1.63687]
[1754555455341,20.092,3723.9,3723.8,1.63687]
[1754555455841,1.666,3723.9,3723.8,1.63687]
[1754555456040,20.089,3723.9,3723.8,1.63687]
[1754555456442,59.221,3724.0,3723.8,1.86447]
[1754555456737,59.221,3724.0,3723.9,1.6313]
[1754555457629,59.7905,3724.0,3723.9,1.6313]
[1754555457944,41.0792,3724.0,3723.9,1.6313]
[1754555458143,41.3695,3724.0,3723.9,1.3275]
[1754555458345,41.7951,3724.0,3723.9,1.6313]
[1754555459838,41.3695,3724.0,3723.9,1.6313]
[1754555460643,40.8,3724.0,3723.9,1.6313]
[1754555460837,20.1722,3724.8,3724.7,1.88295]
[1754555461038,20.1722,3724.8,3724.7,2.17355]
[1754555461246,60.9722,3724.8,3724.7,1.88295]
[1754555462043,60.9702,3724.8,3724.7,2.17355]
[1754555462953,60.9702,3724.8,3724.7,1.88295]
[1754555463452,60.9702,3724.8,3724.7,1.65455]
[1754555463748,60.9702,3724.8,3724.7,0.81745]
[1754555463946,60.9702,3724.8,3724.7,0.2806]
[1754555464147,61.50705,3724.8,3724.5,0.53686]
[1754555464351,0.7039,3724.6,3724.5,0.53686]
[1754555464551,1.0089,3724.5,3724.4,0.53689]
[1754555464852,1.7522,3724.5,3724.4,0.53689]
[1754555465152,1.7522,3724.3,3724.2,0.53691]
[1754555465452,1.7522,3724.3,3724.0,0.4771]
[1754555465453,1.24084,3724.1,3724.0,0.4771]
[1754555465651,2.28914,3724.1,3724.0,0.9249]
[1754555465853,20.70614,3724.1,3724.0,0.9249]
[1754555466452,20.1692,3724.1,3724.0,0.9249]
[1754555466946,0.7039,3723.9,3723.8,0.53697]
[1754555467142,1.7522,3723.9,3723.8,1.88307]
[1754555467741,1.7522,3723.9,3723.8,1.65467]
[1754555467945,1.7522,3723.9,3723.8,0.9249]
[1754555468349,20.1642,3723.9,3723.8,0.9249]
[1754555468650,20.1642,3723.9,3723.8,0.4771]
[1754555468851,20.70118,3723.9,3723.7,0.53698]
[1754555469056,1.5547,3723.8,3723.7,0.53698]
[1754555469247,1.7522,3723.8,3723.7,0.53698]
[1754555470249,20.1642,3724.2,3724.1,1.20683]
[1754555470457,20.1642,3724.2,3724.1,2.17363]
[1754555470851,60.9642,3724.2,3724.1,2.17363]
[1754555472059,60.9642,3724.2,3724.1,0.53693]
[1754555472253,42.5522,3724.2,3724.1,1.01403]
[1754555472453,20.1652,3724.2,3724.1,1.88303]
[1754555474155,20.1652,3724.2,3724.1,1.65463]
[1754555474456,60.9652,3724.2,3724.1,1.65463]
[1754555475760,60.9652,3724.2,3724.1,1.88303]
[1754555477260,1.26837275,3725.4,3725.0,0.53681]
[1754555477464,18.9981,3725.3,3725.2,1.6367]
[1754555477653,60.9652,3725.3,3725.2,1.6367]
[1754555478271,59.213,3725.3,3725.2,1.6367]
[1754555478465,59.7981,3725.3,3725.2,1.6367]
[1754555478656,60.2613,3725.3,3725.2,1.6367]
[1754555479560,60.2613,3725.3,3725.2,1.3461]
[1754555480162,60.2613,3725.3,3725.2,1.1177]
[1754555480371,1.1671,3725.2,3725.1,0.53679]
[1754555480662,1.7522,3725.2,3725.1,0.53679]
[1754555481466,20.1642,3725.2,3725.1,0.53679]
[1754555481665,20.1642,3725.2,3725.1,1.01389]
[1754555481966,0.981,3725.2,3725.1,1.88209]
[1754555482263,19.393,3725.2,3725.1,2.17269]
[1754555483165,18.716,3725.2,3725.1,2.17269]
[1754555483560,0.305,3725.2,3725.1,2.17269]
[1754555483762,18.716,3725.2,3725.1,2.17269]
[1754555483962,20.1632,3725.2,3725.1,2.17269]
[1754555485669,1.7522,3725.2,3725.1,2.17269]
[1754555485868,20.1622,3725.2,3725.1,2.17269]
[1754555487065,1.7522,3725.2,3725.1,1.65449]
[1754555487367,1.43804068,3726.9,3726.8,0.53655]
[1754555487564,1.4472,3726.9,3726.8,0.53655]
[1754555487764,42.2472,3726.9,3726.8,0.53655]
[1754555488673,1.4472,3726.8,3726.7,0.53655]
[1754555489164,59.324,3726.9,3726.4,0.5366]
[1754555489165,0.7418,3726.5,3726.4,0.5366]
[1754555489361,1.34163,3726.1,3724.2,3.33859346]
[1754555489563,1.34163,3726.1,3723.8,4.85393432]
[1754555489564,0.5386,3724.5,3723.7,0.6593]
[1754555489766,0.2897,3724.2,3723.8,0.53698]
[1754555489964,0.5386,3723.9,3723.7,0.7405]
[1754555490268,0.7465,3723.8,3723.7,1.0348]
[1754555490968,1.36528,3723.8,3723.7,0.7405]
[1754555491172,1.36528,3723.8,3723.7,0.3086]
[1754555491362,0.53702,3723.5,3723.4,0.7262]
[1754555491566,1.36532,3723.5,3723.4,1.0348]
[1754555491867,1.36532,3723.5,3723.4,0.3086]
[1754555492470,0.2897,3723.5,3723.4,0.6029]
[1754555492665,0.7465,3723.5,3723.4,1.0348]
[1754555493366,0.9449,3723.5,3723.4,1.7117]
[1754555493763,0.4568,3723.8,3723.4,0.6769]
[1754555493969,18.977,3723.7,3723.6,1.7117]
[1754555494470,0.4881,3723.8,3723.7,1.7117]
[1754555494671,0.1984,3723.8,3723.7,1.7117]
[1754555494870,19.1624,3723.8,3723.7,1.7117]
[1754555495965,19.4521,3723.8,3723.7,1.7117]
[1754555496167,19.98908,3723.8,3723.7,1.7117]
[1754555496374,19.4521,3723.8,3723.7,1.7117]
[1754555496973,0.1984,3723.3,3723.2,1.64585]
[1754555497176,0.4881,3723.3,3723.2,2.24875]
[1754555497974,0.1984,3723.3,3723.2,2.24875]
[1754555498676,0.1984,3723.3,3723.2,1.95445]
[1754555498879,0.9449,3723.3,3723.2,2.24875]
[1754555499071,1.2264,3723.3,3723.2,1.7117]
[1754555499267,1.14776,3723.3,3723.0,0.53708]
[1754555499468,1.89428,3723.2,3723.1,1.7117]
[1754555499675,1.97608,3723.2,3723.1,0.9855]
[1754555499872,0.4799,3722.9,3722.8,1.7117]
[1754555500071,1.3572,3722.9,3722.8,1.7117]
[1754555500479,1.439,3722.9,3722.8,1.7117]
[1754555500680,0.1984,3722.8,3722.7,2.24883]
[1754555501076,0.7696,3722.8,3722.7,1.7117]
[1754555501275,0.53717,3722.5,3722.4,0.7897]
[1754555501477,1.97617,3722.5,3722.4,0.9855]
[1754555502073,1.97617,3722.5,3722.4,0.7897]
[1754555502280,0.6107,3722.3,3722.2,0.6183]
[1754555502478,1.439,3722.3,3722.2,0.9269]
[1754555502772,1.439,3722.3,3722.0,0.83153]
[1754555502773,0.53721,3722.2,3722.0,0.83153]
[1754555503080,0.3292,3721.9,3721.8,0.495]
[1754555503280,0.6925,3721.9,3721.8,0.495]
[1754555503479,41.4107,3721.9,3721.7,0.53727]
[1754555503673,0.6925,3721.8,3721.7,0.84587]
[1754555503884,1.439,3721.8,3721.7,1.52277]
[1754555504179,1.439,3721.8,3721.7,1.95467]
[1754555504378,1.439,3721.8,3721.7,2.24897]
[1754555504975,1.439,3721.8,3721.7,1.95467]
[1754555505883,1.3572,3721.8,3721.7,2.24897]
[1754555506780,1.3572,3721.8,3721.7,1.52277]
[1754555506781,1.439,3721.8,3721.7,1.52277]
[1754555507279,1.439,3721.8,3721.7,1.95467]
[1754555507479,1.439,3721.8,3721.7,2.24897]
[1754555509982,40.8,3721.9,3721.7,2.24897]
[1754555510185,40.8,3721.9,3721.8,1.7117]
[1754555510482,20.2482,3722.3,3722.2,2.24891]
[1754555510780,60.9174,3722.3,3722.2,2.24891]
[1754555511181,60.4606,3722.3,3722.2,2.24891]
[1754555511479,60.4616,3722.3,3722.2,2.24891]
[1754555512183,41.5696,3722.3,3722.2,2.24891]
[1754555512386,60.4586,3722.3,3722.2,2.24891]
[1754555512685,60.9154,3722.3,3722.2,2.24891]
[1754555513277,41.5696,3722.3,3722.2,2.24891]
[1754555513482,60.1639,3722.3,3722.2,2.24891]
[1754555513979,40.8,3722.3,3722.2,2.24891]
[1754555514180,59.672,3722.3,3722.2,2.24891]
[1754555514382,0.9822,3723.0,3722.9,1.52261]
[1754555514580,20.311,3723.0,3722.9,1.95451]
[1754555514781,61.111,3723.0,3722.9,1.95451]
[1754555515087,42.239,3723.0,3722.9,1.4174]
[1754555515380,61.113,3723.0,3722.1,1.34305]
[1754555515583,1.439,3722.3,3722.2,1.7117]
[1754555515878,20.307,3722.3,3722.2,1.7117]
[1754555516075,20.307,3722.3,3722.1,0.53721]
[1754555516277,1.439,3722.2,3722.1,0.53721]
[1754555516584,1.439,3722.2,3722.1,0.495]
[1754555516784,1.439,3722.2,3722.1,0.9855]
[1754555516986,1.97621,3722.2,3722.1,0.9855]
[1754555517482,1.97625,3722.0,3721.8,0.53725]
[1754555517682,1.439,3721.8,3721.7,0.53728]
[1754555518386,42.239,3721.8,3721.7,0.53728]
[1754555518586,42.239,3721.8,3721.7,0.84588]
[1754555518787,42.239,3721.8,3721.7,1.03228]
[1754555518984,42.239,3721.8,3721.7,1.52278]
[1754555520483,42.239,3721.8,3721.7,1.94358]
[1754555520786,42.239,3721.8,3721.7,2.57679405]
[1754555520988,42.1572,3721.8,3721.7,2.57679405]
[1754555521389,42.1572,3721.8,3721.7,1.36269405]
[1754555521585,42.2393,3721.8,3721.7,1.64399405]
[1754555521785,42.77657,3721.8,3721.7,0.33041405]
[1754555522791,1.0925,3721.0,3720.9,1.50489486]
[1754555522979,20.0216,3721.0,3720.9,2.27769486]
[1754555523187,0.1923,3720.1,3720.0,0.9703]
[1754555523387,0.1923,3720.1,3720.0,2.23143]
[1754555523892,59.649,3720.2,3720.0,2.23143]
[1754555524188,40.8,3720.2,3720.1,1.6939]
[1754555524392,18.853,3720.4,3720.3,0.665]
[1754555524593,18.853,3720.4,3720.3,1.6939]
[1754555524786,18.853,3720.4,3720.3,2.23138]
[1754555524983,40.8,3720.8,3720.7,0.92113]
[1754555525185,59.653,3720.8,3720.7,2.23133]
[1754555525388,40.8,3720.8,3720.7,2.23133]
[1754555525690,59.65,3720.8,3720.7,2.23133]
[1754555526788,59.648,3720.8,3720.7,2.23133]
[1754555526994,40.8,3720.8,3720.7,2.23133]
[1754555527195,59.8287,3720.8,3720.7,1.50773]
[1754555527494,60.2046,3720.8,3720.7,1.50773]
[1754555527700,60.2046,3720.8,3720.7,1.92853]
[1754555528092,60.2046,3720.8,3720.7,2.23133]
[1754555528283,41.1759,3720.8,3720.7,2.23133]
[1754555528489,0.6064,3721.6,3721.5,1.1936]
[1754555528689,20.7076857,3721.6,3721.5,1.6939]
[1754555528890,61.5897857,3721.6,3721.5,1.6939]
[1754555529090,61.5897857,3721.6,3721.5,1.3911]
[1754555529496,61.5897857,3721.6,3721.5,1.9284]
[1754555530498,61.5897857,3721.6,3721.5,0.9703]
[1754555530688,61.59039946,3721.6,3721.5,0.9703]
[1754555531087,61.59039946,3721.6,3721.5,0.7728]
[1754555531292,0.616,3721.4,3721.3,0.53732]
[1754555531493,20.78039946,3721.4,3721.3,0.53732]
[1754555531692,20.78039946,3721.4,3721.0,0.4208]
[1754555531693,0.5586,3721.3,3721.1,0.3053]
[1754555531894,0.5586,3721.1,3721.0,0.53737]
[1754555532092,20.77839946,3721.1,3720.9,0.84268]
[1754555532396,1.95039946,3721.0,3720.9,0.84268]
[1754555532598,1.0925,3720.8,3720.7,0.5374]
[1754555532792,1.1746,3720.8,3720.7,1.9285]
[1754555533198,1.95075867,3720.8,3720.7,1.9285]
[1754555533492,1.95075867,3720.8,3720.4,0.7236]
[1754555533692,0.616,3720.6,3720.5,1.62324]
[1754555533897,1.1746,3720.6,3720.5,1.62324]
[1754555534294,1.95073796,3720.6,3720.5,1.92854]
[1754555534685,1.95073796,3720.6,3720.5,2.23134]
[1754555534891,1.86863796,3720.6,3720.5,2.23134]
[1754555536191,1.95073796,3720.6,3720.5,1.6939]
[1754555536392,1.95073796,3720.6,3720.5,0.7728]
[1754555536597,1.39213796,3720.6,3720.4,0.53745]
[1754555536897,20.67963796,3720.5,3720.4,2.23135]
[1754555537097,61.47963796,3720.5,3720.4,2.23135]
[1754555538001,42.66863796,3720.5,3720.4,2.23135]
[1754555538297,61.55473796,3720.5,3720.4,2.23135]
[1754555538497,61.55473796,3720.5,3720.4,0.53745]
[1754555538697,61.55473796,3720.5,3720.4,1.31025]
[1754555538887,61.55473796,3720.5,3720.4,1.50775]
[1754555540091,61.55473796,3720.5,3720.4,1.92855]
[1754555540597,61.55473796,3720.5,3720.4,2.23135]
[1754555540598,60.56243796,3720.5,3720.4,2.23135]
[1754555541193,61.03893796,3720.5,3720.4,2.23135]
[1754555541594,61.12103796,3720.5,3720.4,2.23135]
[1754555542505,60.56043796,3720.5,3720.4,2.23135]
[1754555542709,0.375,3720.9,3720.8,1.2024]
[1754555543003,20.64740745,3720.9,3720.8,2.2313]
[1754555543204,61.52950745,3720.9,3720.8,2.2313]
[1754555543701,0.2648,3720.8,3720.7,0.53741]
[1754555543899,0.2648,3720.8,3720.1,1.34374]
[1754555543900,1.1746,3720.2,3720.1,1.9261]
[1754555544302,0.4237,3719.8,3719.7,1.62336]
[1754555544502,1.0925,3719.8,3719.7,2.23146]
[1754555544804,1.1746,3719.8,3719.7,2.23146]
[1754555545296,19.9556,3719.8,3719.7,1.50786]
[1754555545605,19.9556,3719.8,3719.6,0.53757]
[1754555545797,1.95131591,3719.7,3719.6,0.53757]
[1754555545996,1.95131591,3719.7,3719.6,1.50787]
[1754555546196,1.95131591,3719.7,3719.6,2.23147]
[1754555547000,1.95131591,3719.7,3719.6,1.23967]
[1754555547193,1.95131591,3719.7,3719.6,0.53757]
[1754555548204,1.1746,3719.7,3719.6,1.92867]
[1754555548406,0.4861,3719.7,3719.6,2.23147]
[1754555549305,0.8951,3719.7,3719.6,0.53757]
[1754555549606,1.1583,3719.7,3719.6,1.95837]
[1754555550007,1.1583,3719.7,3719.6,1.32777]
[1754555550307,1.1583,3719.7,3719.6,1.95837]
[1754555550601,41.9583,3719.7,3719.6,1.95837]
[1754555550901,40.9923,3719.7,3719.6,2.25617]
[1754555551109,41.57679942,3719.7,3719.6,2.25617]
[1754555551294,60.33373861,3719.7,3719.6,2.25617]
[1754555551499,1.55209334,3720.4,3720.3,1.24808]
[1754555551700,20.43746729,3720.4,3720.3,2.25608]
[1754555551995,42.47846729,3720.4,3720.3,2.25608]
[1754555552195,60.82746729,3720.4,3720.3,2.25608]
[1754555552403,41.76276729,3720.4,3720.3,2.25608]
[1754555552605,60.51776729,3720.4,3720.3,2.25608]
[1754555553609,40.9861,3720.4,3720.3,2.25608]
[1754555553905,18.9371,3720.4,3720.3,2.25608]
[1754555555205,0.1861,3720.4,3720.3,2.25608]
[1754555555405,18.9321,3720.4,3720.3,2.25608]
[1754555555606,0.1861,3720.4,3720.3,2.25608]
[1754555556111,18.9261,3720.4,3720.3,2.25608]
[1754555558004,19.3367,3720.4,3720.2,0.53749]
[1754555558205,1.169,3720.3,3720.2,0.53749]
[1754555558910,41.969,3720.3,3720.2,0.53749]
[1754555559510,40.9861,3720.3,3720.2,2.25609]
[1754555559812,18.9391,3720.3,3720.2,2.25609]
[1754555560207,18.753,3720.3,3720.2,2.25609]
[1754555560707,18.9391,3720.3,3720.2,2.25609]
[1754555560908,0.1861,3720.3,3720.2,2.25609]
[1754555561210,59.55,3720.4,3720.3,1.7186]
[1754555561613,1.0866,3720.7,3720.6,2.25603]
[1754555561911,19.92,3720.7,3720.6,2.25603]
[1754555562109,60.72,3720.7,3720.6,2.25603]
[1754555562812,60.72,3720.7,3720.6,1.95823]
[1754555563011,60.72,3720.7,3720.6,1.32763]
[1754555563211,0.3891,3720.2,3720.0,0.53752]
[1754555563414,19.915,3720.1,3720.0,0.53752]
[1754555564309,19.915,3720.1,3720.0,0.81772]
[1754555564510,20.45251,3720.1,3720.0,0.81772]
[1754555564711,19.915,3720.1,3720.0,0.81772]
[1754555565416,19.915,3720.1,3720.0,1.52832]
[1754555565908,19.915,3720.1,3720.0,1.32772]
[1754555566215,1.169,3720.0,3719.9,1.52833]
[1754555566418,1.169,3720.0,3719.9,1.95833]
[1754555566608,1.169,3720.0,3719.9,2.25613]
[1754555567309,1.0866,3720.0,3719.9,2.25613]
[1754555567908,0.9034,3720.5,3720.4,1.4384]
[1754555568113,21.13666171,3720.5,3720.4,1.7186]
[1754555568512,20.40701171,3720.5,3720.4,1.7186]
[1754555568715,0.1861,3720.5,3720.4,1.7186]
[1754555569018,0.7584,3720.8,3720.7,1.24802]
[1754555569218,1.45362716,3720.8,3720.7,2.25602]
[1754555569415,60.97962716,3720.8,3720.7,2.25602]
[1754555570017,41.76372716,3720.8,3720.7,2.25602]
[1754555570222,60.48972716,3720.8,3720.7,2.25602]
[1754555570521,60.0188,3720.8,3720.7,2.25602]
[1754555570820,60.202,3720.8,3720.7,2.25602]
[1754555571019,60.97966085,3720.8,3720.7,2.25602]
[1754555571818,61.06206085,3720.8,3720.7,2.25602]
[1754555572724,61.06206085,3720.8,3720.7,1.32762]
[1754555572922,61.06206085,3720.8,3720.7,1.52822]
[1754555573616,61.06206085,3720.8,3720.7,0.9908]
[1754555574114,0.5375,3720.3,3719.7,1.34388]
[1754555574319,2.48408085,3720.7,3720.6,1.97583]
[1754555574519,21.19208085,3720.7,3720.6,2.25603]
[1754555574721,21.19208085,3720.7,3720.6,1.4208]
[1754555575419,21.19208085,3720.7,3720.6,1.7186]
[1754555576115,21.19208085,3720.7,3720.6,1.4208]
[1754555576316,21.19208085,3720.7,3720.6,0.9908]
[1754555576508,0.94805,3720.5,3720.4,1.04745]
[1754555576713,20.41445,3720.5,3720.4,0.53745]
[1754555576915,1.70651,3720.1,3720.0,0.2017]
[1754555577119,20.41451,3720.1,3720.0,0.2017]
[1754555577313,20.41451,3720.1,3720.0,0.4819]